[Event "SWE-ch Masters 2019"]
[Site "Eskilstuna"]
[Date "2019.07.11"]
[Round "6.6"]
[White "Lind, Jan-Olov"]
[Black "Tiger-Norqvist, Axel"]
[Result "0-1"]
[ECO "C44"]
[WhiteElo "2155"]
[BlackElo "2222"]
[Annotator "NA"]
[PlyCount "170"]
[EventDate "2019.07.06"]
[EventType "swiss"]
[EventCountry "SWE"]
[SourceTitle "playchess.com"]
[Source "ChessBase"]
[SourceQuality "1"]
[TimeControl "40/5400+30:1800+30"]

1. e4 {[%emt 0:00:00]} Nf6 {[%emt 0:00:00]} 2. d3 {[%emt 0:00:00]} d5 {[%emt 0:00:00]} 3. Nd2 {[%emt 0:00:00]} e5 {[%emt 0:00:00]} 4. Ngf3 {[%emt 0:00:00]} Nc6 {[%emt 0:00:00]} 5. Be2 {[%emt 0:00:07]} Bc5 {[%emt 0:00:22]} 6. O-O {[%emt 0:00:23]} O-O {[%emt 0:00:09]} 7. c3 {[%emt 0:00:05]} a5 {[%emt 0:00:24]} 8. b3 {[%emt 0:00:06]} Bg4 {[%emt 0:00:46]} 9. Qc2 {[%emt 0:06:02]} d4 {[%emt 0:01:59]} 10. c4 {[%emt 0:05:29]} Qe7 {[%emt 0:01:05]} 11. a3 {[%emt 0:02:30]} Nd8 {[%emt 0:08:22]} 12. h3 {[%emt 0:09:30]} Bd7 {[%emt 0:03:36]} 13. Qd1 {[%emt 0:04:57]} Ne8 {[%emt 0:05:52]} 14. Ne1 {[%emt 0:14:06]} Bd6 {[%emt 0:06:21]} 15. Ndf3 {[%emt 0:04:20]} f6 {[%emt 0:01:57]} 16. Nc2 {[%emt 0:01:47]} Nf7 {[%emt 0:01:40]} 17. Bd2 {[%emt 0:06:38]} c5 {[%emt 0:01:21]} 18. Nfe1 {[%emt 0:03:19]} Nc7 {[%emt 0:02:17]} 19. Bg4 {[%emt 0:01:15]} g6 {[%emt 0:18:25]} 20. Bxd7 {[%emt 0:02:15]} Qxd7 {[%emt 0:00:08]} 21. Qf3 {[%emt 0:01:59]} Ne6 {[%emt 0:01:12]} 22. Qg3 {[%emt 0:01:23]} Nf4 {[%emt 0:01:40]} 23. Bxf4 {[%emt 0:03:10]} exf4 {[%emt 0:00:04]} 24. Qf3 {[%emt 0:00:30]} Rfe8 {[%emt 0:04:02]} 25. Qd1 {[%emt 0:01:20]} b6 {[%emt 0:08:50]} 26. Nf3 {[%emt 0:00:49]} Ra7 {[%emt 0:02:50]} 27. Rb1 {[%emt 0:00:50]} Rea8 {[%emt 0:00:26]} 28. Qe2 {[%emt 0:03:06]} Re8 {[%emt 0:04:02]} 29. Qd1 {[%emt 0:00:11]} Qc6 {[%emt 0:02:28]} 30. Qd2 {[%emt 0:07:37]} Kg7 {[%emt 0:02:44]} 31. Rb2 {[%emt 0:02:10]} Rae7 {[%emt 0:04:44]} 32. Re1 {[%emt 0:02:12]} Bc7 {[%emt 0:00:31]} 33. Rbb1 {[%emt 0:00:45]} Nd6 {[%emt 0:00:39]} 34. a4 {[%emt 0:05:57]} Nf7 {[%emt 0:01:22]} 35. Qd1 {[%emt 0:06:48]} Qd7 {[%emt 0:02:26]} 36. Nh2 {[%emt 0:01:19]} h5 {[%emt 0:00:41]} 37. f3 {[%emt 0:00:33]} Re5 {[%emt 0:00:43]} 38. Kf2 {[%emt 0:00:49]} Bd6 {[%emt 0:05:23]} 39. Ke2 {[%emt 0:02:34]} Be7 {[%emt 0:04:52]} 40. Kd2 {[%emt 0:00:32]} f5 {[%emt 0:01:11]} 41. Kc1 {[%emt 0:32:08]} Bh4 {[%emt 0:30:17]} 42. Re2 {[%emt 0:00:00]} g5 {[%emt 0:00:00]} 43. Kb2 {[%emt 0:00:00]} Nh6 {[%emt 0:00:00]} 44. Qg1 {[%emt 0:00:00]} Kf8 {[%emt 0:00:00]} 45. Nf1 {[%emt 0:00:00]} g4 {[%emt 0:00:00]} 46. Qh2 {[%emt 0:00:00]} Bg5 {[%emt 0:00:00]} 47. Nd2 {[%emt 0:00:00]} Qg7 {[%emt 0:00:00]} 48. Rf1 {[%emt 0:00:00]} Kg8 {[%emt 0:00:00]} 49. Ka2 {[%emt 0:00:00]} Nf7 {[%emt 0:00:00]} 50. Qh1 {[%emt 0:00:00]} Nd6 {[%emt 0:00:00]} 51. g3 {[%emt 0:01:32]} fxe4 {[%emt 0:00:00]} 52. gxf4 {[%emt 0:01:26]} Bxf4 {[%emt 0:00:00]} 53. fxe4 {[%emt 0:00:28]} Qh6 {[%emt 0:00:00]} 54. Qg2 {[%emt 0:00:45]} g3 {[%emt 0:00:00]} 55. Nf3 {[%emt 0:00:16]} R5e7 {[%emt 0:00:00]} 56. h4 {[%emt 0:01:03]} Rg7 {[%emt 0:00:00]} 57. Ng1 {[%emt 0:00:30]} Nf7 {[%emt 0:00:00]} 58. Nh3 {[%emt 0:00:11]} Bd6 {[%emt 0:00:31]} 59. Kb2 {[%emt 0:00:12]} Ne5 {[%emt 0:00:16]} 60. Ne1 {[%emt 0:02:09]} Be7 {[%emt 0:01:17]} 61. Rf5 {[%emt 0:00:56]} Bxh4 {[%emt 0:04:22]} 62. Kc2 {[%emt 0:00:01]} Ng4 {[%emt 0:00:18]} 63. Nf4 {[%emt 0:00:45]} Bg5 {[%emt 0:00:37]} 64. Nd5 {[%emt 0:00:38]} h4 {[%emt 0:01:05]} 65. Nf3 {[%emt 0:00:07]} Rf8 {[%emt 0:02:53]} 66. Rxf8+ {[%emt 0:00:12]} Kxf8 {[%emt 0:00:06]} 67. Qh3 {[%emt 0:00:13]} Bd8 {[%emt 0:00:52]} 68. e5 {[%emt 0:00:07]} Qe6 {[%emt 0:00:02]} 69. Kb2 {[%emt 0:00:14]} Qf5 {[%emt 0:00:33]} 70. Ne1 {[%emt 0:00:04]} Ne3 {[%emt 0:00:18]} 71. Qxf5+ {[%emt 0:00:21]} Nxf5 {[%emt 0:00:04]} 72. Nf4 {[%emt 0:00:14]} Rg4 {[%emt 0:00:55]} 73. Nh3 {[%emt 0:00:15]} Ne3 {[%emt 0:00:40]} 74. Ng2 {[%emt 0:00:05]} Nxg2 {[%emt 0:00:16]} 75. Rxg2 {[%emt 0:00:01]} Bg5 {[%emt 0:00:07]} 76. Kc2 {[%emt 0:00:11]} Be3 {[%emt 0:00:14]} 77. Kd1 {[%emt 0:00:08]} Rg7 {[%emt 0:00:42]} 78. Ke2 {[%emt 0:00:25]} Rf7 {[%emt 0:00:08]} 79. Ke1 {[%emt 0:02:12]} Ke7 {[%emt 0:00:04]} 80. Re2 {[%emt 0:00:21]} Rf5 {[%emt 0:00:44]} 81. Rg2 {[%emt 0:00:15]} Ke6 {[%emt 0:00:05]} 82. Ng1 {[%emt 0:00:37]} Bxg1 {[%emt 0:00:06]} 83. Rxg1 {[%emt 0:00:04]} Rf2 {[%emt 0:00:05]} 84. Rh1 {[%emt 0:00:18]} g2 {[%emt 0:00:04]} 85. Rg1 {[%emt 0:00:16]} Ra2 {[%emt 0:00:04]} 0-1

[Event "SWE-ch Masters 2019"]
[Site "Eskilstuna"]
[Date "2019.07.11"]
[Round "6.7"]
[White "Olsson, Simon"]
[Black "Hellstrom, Magnus"]
[Result "1-0"]
[ECO "A45"]
[WhiteElo "2176"]
[BlackElo "2061"]
[Annotator "NA"]
[PlyCount "63"]
[EventDate "2019.07.06"]
[EventType "swiss"]
[EventCountry "SWE"]
[SourceTitle "playchess.com"]
[Source "ChessBase"]
[SourceQuality "1"]
[TimeControl "40/5400+30:1800+30"]

1. d4 {[%emt 0:00:00]} Nf6 {[%emt 0:01:13]} 2. Bg5 {[%emt 0:00:07]} c5 {[%emt 0:01:10]} 3. Bxf6 {[%emt 0:00:09]} gxf6 {[%emt 0:00:16]} 4. d5 {[%emt 0:00:07]} Qb6 {[%emt 0:00:29]} 5. Qc1 {[%emt 0:00:13]} f5 {[%emt 0:00:58]} 6. c4 {[%emt 0:00:49]} Bg7 {[%emt 0:01:33]} 7. Nc3 {[%emt 0:00:11]} d6 {[%emt 0:01:13]} 8. e3 {[%emt 0:00:40]} Nd7 {[%emt 0:00:50]} 9. Qc2 {[%emt 0:00:43]} Ne5 {[%emt 0:07:57]} 10. h3 {[%emt 0:14:33]} Bd7 {[%emt 0:04:28]} 11. f4 {[%emt 0:01:34]} Ng6 {[%emt 0:01:31]} 12. Bd3 {[%emt 0:00:18]} e5 {[%emt 0:11:03]} 13. dxe6 {[%emt 0:01:48]} fxe6 {[%emt 0:00:56]} 14. Nge2 {[%emt 0:03:12]} O-O-O {[%emt 0:10:57]} 15. O-O-O {[%emt 0:03:24]} h5 {[%emt 0:08:34]} 16. g4 {[%emt 0:04:14]} hxg4 {[%emt 0:03:43]} 17. hxg4 {[%emt 0:05:03]} Ne7 {[%emt 0:00:17]} 18. gxf5 {[%emt 0:05:39]} exf5 {[%emt 0:05:39]} 19. Ng3 {[%emt 0:01:48]} Qa6 {[%emt 0:08:41]} 20. Kb1 {[%emt 0:03:34]} Kb8 {[%emt 0:05:02]} 21. Nd5 {[%emt 0:04:23]} Rxh1 {[%emt 0:02:28]} 22. Rxh1 {[%emt 0:00:19]} Re8 {[%emt 0:01:59]} 23. Rh7 {[%emt 0:02:59]} Nxd5 {[%emt 0:09:55]} 24. cxd5 {[%emt 0:00:05]} Qa5 {[%emt 0:00:05]} 25. Rxg7 {[%emt 0:14:13]} Rxe3 {[%emt 0:00:46]} 26. Ne2 {[%emt 0:00:11]} Ba4 {[%emt 0:09:48]} 27. b3 {[%emt 0:00:59]} Bb5 {[%emt 0:01:19]} 28. Bxb5 {[%emt 0:02:14]} Qxb5 {[%emt 0:00:05]} 29. Rg2 {[%emt 0:04:16]} Qb4 {[%emt 0:00:45]} 30. Qxf5 {[%emt 0:04:24]} Qe1+ {[%emt 0:00:47]} 31. Nc1 {[%emt 0:00:14]} c4 {[%emt 0:00:23]} 32. Qf8+ {[%emt 0:01:38]} 1-0

[Event "SWE-ch Masters 2019"]
[Site "Eskilstuna"]
[Date "2019.07.11"]
[Round "6.8"]
[White "Emmoth, Alfons"]
[Black "Gromark, Per-Olof"]
[Result "1/2-1/2"]
[ECO "D63"]
[WhiteElo "2075"]
[BlackElo "1909"]
[Annotator "NA"]
[PlyCount "53"]
[EventDate "2019.07.06"]
[EventType "swiss"]
[EventCountry "SWE"]
[SourceTitle "playchess.com"]
[Source "ChessBase"]
[SourceQuality "1"]
[TimeControl "40/5400+30:1800+30"]

1. d4 {[%emt 0:00:00]} d5 {[%emt 0:00:00]} 2. c4 {[%emt 0:00:00]} e6 {[%emt 0:00:00]} 3. Nc3 {[%emt 0:00:00]} Nf6 {[%emt 0:00:00]} 4. Bg5 {[%emt 0:00:00]} Be7 {[%emt 0:00:00]} 5. e3 {[%emt 0:00:08]} Nbd7 {[%emt 0:00:04]} 6. Nf3 {[%emt 0:00:20]} h6 {[%emt 0:00:07]} 7. Bh4 {[%emt 0:00:05]} O-O {[%emt 0:00:06]} 8. Rc1 {[%emt 0:00:17]} c5 {[%emt 0:00:39]} 9. cxd5 {[%emt 0:05:20]} Nxd5 {[%emt 0:00:30]} 10. Bxe7 {[%emt 0:02:51]} Nxe7 {[%emt 0:01:40]} 11. e4 {[%emt 0:04:13]} b6 {[%emt 0:02:27]} 12. Bc4 {[%emt 0:07:32]} Bb7 {[%emt 0:04:58]} 13. O-O {[%emt 0:04:09]} cxd4 {[%emt 0:16:39]} 14. Nxd4 {[%emt 0:02:54]} Ne5 {[%emt 0:05:12]} 15. Be2 {[%emt 0:03:30]} a6 {[%emt 0:03:43]} 16. Qa4 {[%emt 0:11:11]} b5 {[%emt 0:11:11]} 17. Qa3 {[%emt 0:10:12]} N7c6 {[%emt 0:03:46]} 18. Nxc6 {[%emt 0:03:14]} Nxc6 {[%emt 0:00:34]} 19. Rfd1 {[%emt 0:00:27]} Qg5 {[%emt 0:02:32]} 20. Qd6 {[%emt 0:13:21]} Rfd8 {[%emt 0:07:31]} 21. Qc7 {[%emt 0:05:22]} Qe7 {[%emt 0:00:52]} 22. Qxe7 {[%emt 0:02:17]} Nxe7 {[%emt 0:00:02]} 23. f3 {[%emt 0:00:08]} Nc6 {[%emt 0:03:57]} 24. Rxd8+ {[%emt 0:02:48]} Rxd8 {[%emt 0:00:11]} 25. Rd1 {[%emt 0:00:06]} Rxd1+ {[%emt 0:01:16]} 26. Nxd1 {[%emt 0:00:14]} Nd4 {[%emt 0:01:35]} 27. Kf2 {[%emt 0:00:52]} 1/2-1/2

[Event "SWE-ch Masters 2019"]
[Site "Eskilstuna"]
[Date "2019.07.11"]
[Round "6.9"]
[White "Cramling Bellon, Anna"]
[Black "Carlsson, Andreas"]
[Result "1/2-1/2"]
[ECO "A90"]
[WhiteElo "2030"]
[BlackElo "2019"]
[Annotator "NA"]
[PlyCount "139"]
[EventDate "2019.07.06"]
[EventType "swiss"]
[EventCountry "SWE"]
[SourceTitle "playchess.com"]
[Source "ChessBase"]
[SourceQuality "1"]
[TimeControl "40/5400+30:1800+30"]

1. d4 {[%emt 0:00:00]} e6 {[%emt 0:00:00]} 2. c4 {[%emt 0:00:00]} f5 {[%emt 0:00:00]} 3. g3 {[%emt 0:00:24]} Nf6 {[%emt 0:00:00]} 4. Bg2 {[%emt 0:00:17]} d5 {[%emt 0:00:22]} 5. Nf3 {[%emt 0:00:07]} c6 {[%emt 0:00:22]} 6. Qc2 {[%emt 0:00:48]} Bd6 {[%emt 0:00:20]} 7. O-O {[%emt 0:00:16]} O-O {[%emt 0:00:14]} 8. Ne1 {[%emt 0:00:50]} b6 {[%emt 0:00:29]} 9. Nd3 {[%emt 0:00:16]} Bb7 10. b3 {[%emt 0:17:18]} Qe7 {[%emt 0:01:29]} 11. Bb2 {[%emt 0:20:43]} Nbd7 {[%emt 0:05:31]} 12. a4 {[%emt 0:02:48]} a5 {[%emt 0:00:42]} 13. Na3 {[%emt 0:02:51]} Rfc8 {[%emt 0:00:27]} 14. e3 {[%emt 0:03:18]} g5 {[%emt 0:09:54]} 15. c5 {[%emt 0:12:05]} Bc7 {[%emt 0:04:03]} 16. cxb6 {[%emt 0:01:28]} Bxb6 {[%emt 0:01:33]} 17. Nc5 {[%emt 0:00:09]} Ra7 {[%emt 0:07:25]} 18. Nxb7 {[%emt 0:01:36]} Rxb7 {[%emt 0:00:08]} 19. Nb5 {[%emt 0:00:19]} Qf8 {[%emt 0:09:52]} 20. Rfc1 {[%emt 0:07:29]} Rbb8 {[%emt 0:00:46]} 21. Nc3 {[%emt 0:00:13]} Qh6 {[%emt 0:06:03]} 22. Ba3 {[%emt 0:11:11]} Kf7 {[%emt 0:08:32]} 23. Bd6 {[%emt 0:03:24]} Ra8 {[%emt 0:02:24]} 24. Qd3 {[%emt 0:03:55]} Ne4 {[%emt 0:00:54]} 25. Nxe4 {[%emt 0:01:23]} fxe4 {[%emt 0:00:25]} 26. Qe2 {[%emt 0:00:41]} Qg6 {[%emt 0:02:56]} 27. f3 {[%emt 0:01:44]} Nf6 {[%emt 0:05:26]} 28. fxe4 {[%emt 0:01:20]} Nxe4 {[%emt 0:01:38]} 29. Bxe4 {[%emt 0:00:11]} dxe4 {[%emt 0:01:39]} 30. Rf1+ {[%emt 0:00:55]} Ke8 {[%emt 0:03:03]} 31. Rac1 {[%emt 0:00:42]} Kd7 {[%emt 0:01:02]} 32. Be5 {[%emt 0:03:42]} Bd8 {[%emt 0:00:37]} 33. Qf2 {[%emt 0:01:43]} Be7 {[%emt 0:01:28]} 34. Qf7 {[%emt 0:01:32]} Rf8 {[%emt 0:02:55]} 35. Qxg6 {[%emt 0:00:02]} hxg6 {[%emt 0:00:26]} 36. g4 {[%emt 0:01:24]} Rac8 {[%emt 0:04:14]} 37. Bg7 {[%emt 0:00:37]} Rg8 {[%emt 0:03:08]} 38. Bf6 {[%emt 0:00:38]} Rb8 {[%emt 0:02:31]} 39. Bxe7 {[%emt 0:00:29]} Kxe7 {[%emt 0:00:10]} 40. Rc3 {[%emt 0:00:28]} Rb6 {[%emt 0:00:32]} 41. Rfc1 {[%emt 0:07:53]} Kd7 {[%emt 0:05:57]} 42. Kf2 {[%emt 0:03:39]} Rf8+ {[%emt 0:00:20]} 43. Ke2 {[%emt 0:07:19]} Rh8 {[%emt 0:01:55]} 44. Rh1 {[%emt 0:01:04]} Rh3 {[%emt 0:00:25]} 45. Kd2 {[%emt 0:03:56]} Rb8 {[%emt 0:00:49]} 46. Kc1 {[%emt 0:01:53]} Rf8 {[%emt 0:01:41]} 47. Kd1 {[%emt 0:05:13]} Rf2 {[%emt 0:00:48]} 48. Rc2 {[%emt 0:01:39]} Rxc2 {[%emt 0:02:29]} 49. Kxc2 {[%emt 0:00:01]} Rxe3 {[%emt 0:00:10]} 50. h4 {[%emt 0:01:22]} gxh4 {[%emt 0:01:01]} 51. Rxh4 {[%emt 0:00:02]} Rg3 {[%emt 0:00:43]} 52. g5 {[%emt 0:00:40]} Rxg5 {[%emt 0:05:13]} 53. Rxe4 {[%emt 0:00:05]} Kd6 {[%emt 0:01:52]} 54. Kc3 {[%emt 0:01:42]} c5 {[%emt 0:00:46]} 55. dxc5+ {[%emt 0:01:02]} Rxc5+ {[%emt 0:00:13]} 56. Kd4 {[%emt 0:00:10]} Rg5 {[%emt 0:00:40]} 57. Kc4 {[%emt 0:00:26]} Rc5+ {[%emt 0:01:05]} 58. Kd4 {[%emt 0:00:19]} e5+ {[%emt 0:00:40]} 59. Kd3 {[%emt 0:00:02]} Kd5 {[%emt 0:00:20]} 60. Rg4 {[%emt 0:00:17]} Rc6 {[%emt 0:02:01]} 61. b4 {[%emt 0:01:18]} axb4 {[%emt 0:00:51]} 62. Rxb4 {[%emt 0:00:03]} g5 {[%emt 0:01:20]} 63. Rg4 {[%emt 0:00:50]} Rg6 {[%emt 0:04:18]} 64. a5 {[%emt 0:00:22]} Ra6 {[%emt 0:00:29]} 65. Rxg5 {[%emt 0:00:07]} Rxa5 {[%emt 0:00:08]} 66. Rg4 {[%emt 0:01:08]} Ra3+ {[%emt 0:00:09]} 67. Ke2 {[%emt 0:00:17]} e4 {[%emt 0:00:17]} 68. Rg8 {[%emt 0:00:39]} Kd4 {[%emt 0:00:46]} 69. Rd8+ {[%emt 0:00:08]} Ke5 {[%emt 0:00:11]} 70. Re8+ {[%emt 0:01:48]} 1/2-1/2

[Event "SWE-ch Masters 2019"]
[Site "Eskilstuna"]
[Date "2019.07.11"]
[Round "6.10"]
[White "Sivhed, Johan"]
[Black "Adellian, Yashar"]
[Result "1/2-1/2"]
[ECO "C10"]
[WhiteElo "2023"]
[BlackElo "1995"]
[Annotator "NA"]
[PlyCount "53"]
[EventDate "2019.07.06"]
[EventType "swiss"]
[EventCountry "SWE"]
[SourceTitle "playchess.com"]
[Source "ChessBase"]
[SourceQuality "1"]
[TimeControl "40/5400+30:1800+30"]

1. e4 {[%emt 0:00:00]} e6 {[%emt 0:00:00]} 2. d4 {[%emt 0:00:00]} d5 {[%emt 0:00:00]} 3. Nc3 {[%emt 0:00:00]} Be7 {[%emt 0:00:20]} 4. Nf3 {[%emt 0:12:49]} Nf6 {[%emt 0:01:42]} 5. e5 {[%emt 0:00:23]} Ne4 {[%emt 0:00:07]} 6. Bd3 {[%emt 0:02:24]} Nxc3 {[%emt 0:00:18]} 7. bxc3 {[%emt 0:00:05]} c5 {[%emt 0:00:30]} 8. O-O {[%emt 0:01:03]} Nc6 {[%emt 0:01:46]} 9. Re1 {[%emt 0:06:00]} O-O {[%emt 0:08:41]} 10. Bf4 {[%emt 0:06:52]} Qa5 {[%emt 0:02:54]} 11. a4 {[%emt 0:04:47]} f6 {[%emt 0:08:42]} 12. exf6 {[%emt 0:03:30]} Rxf6 {[%emt 0:01:55]} 13. Bd2 {[%emt 0:13:54]} Qd8 {[%emt 0:15:13]} 14. Ne5 {[%emt 0:07:22]} Nxe5 {[%emt 0:03:29]} 15. dxe5 {[%emt 0:07:37]} Rf7 {[%emt 0:00:49]} 16. c4 {[%emt 0:02:08]} Bg5 {[%emt 0:05:51]} 17. Bxg5 {[%emt 0:04:17]} Qxg5 {[%emt 0:00:14]} 18. g3 {[%emt 0:01:13]} Rb8 {[%emt 0:07:58]} 19. h4 {[%emt 0:03:27]} Qe7 {[%emt 0:05:27]} 20. Qh5 {[%emt 0:01:01]} g6 {[%emt 0:08:07]} 21. Qg4 {[%emt 0:01:07]} Kh8 {[%emt 0:01:49]} 22. f4 {[%emt 0:01:46]} Rg7 {[%emt 0:01:02]} 23. a5 {[%emt 0:01:40]} Bd7 {[%emt 0:00:27]} 24. Qg5 {[%emt 0:05:42]} Bc6 {[%emt 0:02:56]} 25. Kf2 {[%emt 0:01:42]} d4 {[%emt 0:05:14]} 26. Qxe7 {[%emt 0:01:05]} Rxe7 {[%emt 0:00:05]} 27. Rab1 {[%emt 0:01:43]} 1/2-1/2

[Event "SWE-ch Masters 2019"]
[Site "Eskilstuna"]
[Date "2019.07.11"]
[Round "6.10"]
[White "Bannoura, Jeries"]
[Black "Adellian, Yashar"]
[Result "*"]
[ECO "C10"]
[WhiteElo "1976"]
[BlackElo "1995"]
[Annotator "NA"]
[PlyCount "24"]
[EventDate "2019.07.06"]
[EventType "swiss"]
[EventCountry "SWE"]
[SourceTitle "playchess.com"]
[Source "ChessBase"]
[SourceQuality "1"]
[TimeControl "40/5400+30:1800+30"]

1. e4 {[%emt 0:00:02]} e6 {[%emt 0:00:00]} 2. d4 {[%emt 0:00:00]} d5 {[%emt 0:00:00]} 3. Nc3 {[%emt 0:00:00]} Be7 {[%emt 0:00:20]} 4. Nf3 {[%emt 0:12:49]} Nf6 {[%emt 0:01:42]} 5. e5 {[%emt 0:00:23]} Ne4 {[%emt 0:00:06]} 6. Bd3 {[%emt 0:02:24]} Nxc3 {[%emt 0:00:18]} 7. bxc3 {[%emt 0:00:05]} c5 {[%emt 0:00:30]} 8. O-O {[%emt 0:01:03]} Nc6 {[%emt 0:01:46]} 9. Re1 {[%emt 0:06:00]} O-O {[%emt 0:08:41]} 10. Bf4 {[%emt 0:06:52]} Qa5 {[%emt 0:02:54]} 11. a4 {[%emt 0:04:47]} f6 {[%emt 0:08:42]} 12. exf6 {[%emt 0:03:30]} Rxf6 {[%emt 0:01:55]} *

[Event "SWE-ch Masters 2019"]
[Site "Eskilstuna"]
[Date "2019.07.12"]
[Round "7.1"]
[White "Nikolic, Vladan"]
[Black "Crevatin, Leo"]
[Result "1/2-1/2"]
[ECO "D30"]
[WhiteElo "2153"]
[BlackElo "2146"]
[Annotator "NA"]
[PlyCount "60"]
[EventDate "2019.07.06"]
[EventType "swiss"]
[EventCountry "SWE"]
[SourceTitle "playchess.com"]
[Source "ChessBase"]
[SourceQuality "1"]
[TimeControl "40/5400+30:1800+30"]

1. d4 {[%emt 0:00:00]} d5 {[%emt 0:00:00]} 2. c4 {[%emt 0:00:00]} e6 {[%emt 0:00:00]} 3. Nf3 {[%emt 0:00:00]} a6 {[%emt 0:00:00]} 4. e3 {[%emt 0:05:35]} Nf6 {[%emt 0:00:15]} 5. b3 {[%emt 0:01:34]} b6 {[%emt 0:02:06]} 6. Bb2 {[%emt 0:00:56]} Bb7 {[%emt 0:00:28]} 7. Bd3 {[%emt 0:00:18]} Nbd7 {[%emt 0:01:38]} 8. O-O {[%emt 0:00:43]} Bd6 {[%emt 0:01:33]} 9. Nbd2 {[%emt 0:04:30]} O-O {[%emt 0:03:42]} 10. Ne5 {[%emt 0:01:32]} Ne4 {[%emt 0:03:05]} 11. Rc1 {[%emt 0:03:54]} Nxe5 {[%emt 0:06:10]} 12. dxe5 {[%emt 0:01:06]} Bb4 {[%emt 0:00:36]} 13. Nf3 {[%emt 0:07:07]} c5 {[%emt 0:08:46]} 14. Qe2 {[%emt 0:05:39]} Qe7 {[%emt 0:05:15]} 15. Rfd1 {[%emt 0:04:29]} Rfd8 {[%emt 0:00:40]} 16. Ne1 {[%emt 0:02:11]} f5 {[%emt 0:09:00]} 17. exf6 {[%emt 0:07:04]} Nxf6 {[%emt 0:04:22]} 18. Nf3 {[%emt 0:02:21]} dxc4 {[%emt 0:09:25]} 19. Rxc4 {[%emt 0:01:59]} b5 {[%emt 0:03:59]} 20. Rf4 {[%emt 0:02:53]} Bxf3 {[%emt 0:04:01]} 21. gxf3 {[%emt 0:14:46]} Ba5 {[%emt 0:01:58]} 22. Rh4 {[%emt 0:04:44]} e5 {[%emt 0:01:22]} 23. Kh1 {[%emt 0:03:41]} Rd7 {[%emt 0:02:25]} 24. Qc2 {[%emt 0:04:52]} h6 {[%emt 0:00:51]} 25. Bf5 {[%emt 0:11:24]} Rxd1+ {[%emt 0:01:50]} 26. Qxd1 {[%emt 0:00:06]} Rd8 {[%emt 0:00:33]} 27. Qa1 {[%emt 0:00:15]} Bc7 {[%emt 0:01:06]} 28. Kg2 {[%emt 0:05:36]} Kf8 {[%emt 0:00:58]} 29. Qc1 {[%emt 0:00:56]} Bd6 {[%emt 0:03:38]} 30. Bb1 {[%emt 0:00:50]} Qf7 {[%emt 0:01:40]} 1/2-1/2

[Event "SWE-ch Masters 2019"]
[Site "Eskilstuna"]
[Date "2019.07.12"]
[Round "7.2"]
[White "Landgren, Andreas"]
[Black "Zadruzny, Nicolaj"]
[Result "0-1"]
[ECO "E32"]
[WhiteElo "2246"]
[BlackElo "2280"]
[Annotator "NA"]
[PlyCount "84"]
[EventDate "2019.07.06"]
[EventType "swiss"]
[EventCountry "SWE"]
[SourceTitle "playchess.com"]
[Source "ChessBase"]
[SourceQuality "1"]
[TimeControl "40/5400+30:1800+30"]

1. d4 {[%emt 0:00:00]} Nf6 {[%emt 0:02:10]} 2. c4 {[%emt 0:00:00]} e6 {[%emt 0:00:12]} 3. Nc3 {[%emt 0:00:00]} Bb4 {[%emt 0:00:17]} 4. Qc2 {[%emt 0:00:00]} O-O {[%emt 0:00:06]} 5. a3 {[%emt 0:00:02]} Bxc3+ {[%emt 0:00:06]} 6. Qxc3 {[%emt 0:00:07]} b6 {[%emt 0:00:07]} 7. Bg5 {[%emt 0:00:10]} Bb7 {[%emt 0:00:08]} 8. e3 {[%emt 0:00:24]} d6 {[%emt 0:00:14]} 9. Ne2 {[%emt 0:00:13]} Nbd7 {[%emt 0:00:13]} 10. Qc2 {[%emt 0:01:43]} c5 {[%emt 0:00:21]} 11. Rd1 {[%emt 0:00:35]} h6 {[%emt 0:00:29]} 12. Bh4 {[%emt 0:02:51]} Qe7 {[%emt 0:01:08]} 13. Nc3 {[%emt 0:01:49]} cxd4 {[%emt 0:00:51]} 14. Rxd4 {[%emt 0:02:04]} Rad8 {[%emt 0:00:37]} 15. f3 {[%emt 0:26:47]} e5 {[%emt 0:00:09]} 16. Rd2 {[%emt 0:01:32]} e4 {[%emt 0:00:22]} 17. f4 {[%emt 0:03:53]} g5 {[%emt 0:05:56]} 18. fxg5 {[%emt 0:05:52]} Ng4 {[%emt 0:00:11]} 19. Nd1 {[%emt 0:13:02]} hxg5 {[%emt 0:08:00]} 20. Bg3 {[%emt 0:01:38]} Nde5 {[%emt 0:12:58]} 21. Be2 {[%emt 0:04:23]} Nf3+ {[%emt 0:05:09]} 22. gxf3 {[%emt 0:01:17]} exf3 {[%emt 0:00:54]} 23. O-O {[%emt 0:06:05]} fxe2 {[%emt 0:12:34]} 24. Rxe2 {[%emt 0:00:03]} f5 {[%emt 0:06:17]} 25. h3 {[%emt 0:11:19]} Ne5 {[%emt 0:24:01]} 26. Ref2 {[%emt 0:00:13]} Be4 {[%emt 0:02:13]} 27. Qc3 {[%emt 0:00:22]} Qh7 {[%emt 0:04:36]} 28. Bxe5 {[%emt 0:08:58]} Qxh3 {[%emt 0:00:08]} 29. Re2 {[%emt 0:02:49]} dxe5 {[%emt 0:02:01]} 30. Qxe5 {[%emt 0:03:10]} Qh1+ {[%emt 0:00:56]} 31. Kf2 {[%emt 0:00:04]} Qg2+ {[%emt 0:00:09]} 32. Ke1 {[%emt 0:00:01]} Rxd1+ {[%emt 0:00:08]} 33. Kxd1 {[%emt 0:00:04]} Qxf1+ {[%emt 0:00:07]} 34. Kd2 {[%emt 0:00:12]} Rd8+ {[%emt 0:00:32]} 35. Kc3 {[%emt 0:00:03]} Rd3+ {[%emt 0:03:20]} 36. Kb4 {[%emt 0:00:06]} Qxe2 {[%emt 0:01:24]} 37. Qe6+ {[%emt 0:00:06]} Kg7 {[%emt 0:00:09]} 38. Qe7+ {[%emt 0:00:18]} Kh6 {[%emt 0:00:23]} 39. Qf8+ {[%emt 0:00:07]} Kh5 {[%emt 0:00:11]} 40. Qh8+ {[%emt 0:00:41]} Kg4 {[%emt 0:00:08]} 41. Ka4 {[%emt 0:30:14]} Bc6+ {[%emt 0:30:18]} 42. Kb4 {[%emt 0:00:06]} a5# {[%emt 0:00:10]} 0-1